lending/lending_fUSD_20241115
["ID","MTS","AMOUNT","RATE_DAILY","PERIOD"]
[342289221,1731695449325,-500.0,9.789e-05,2]
[342289222,1731695449337,-814.87,9.789e-05,2]
[342289223,1731695449347,-2780.98,9.789e-05,2]
[342289224,1731695449356,-515.08,9.789e-05,2]
[342289225,1731695449367,-1509.07,9.789e-05,2]
[342289226,1731695449379,-2481.75,9.789e-05,2]
[342289227,1731695449389,-535.04,9.789e-05,2]
[342289228,1731695449399,-741.44,9.789e-05,2]
[342289229,1731695449414,-2866.03,9.789e-05,2]
[342289230,1731695449424,-832.82,9.789e-05,2]
[342289231,1731695449433,-500.0,9.789e-05,2]
[342289232,1731695449443,-500.0,9.789e-05,2]
[342289233,1731695449452,-500.0,9.789e-05,2]
[342289234,1731695449461,-529.96,9.789e-05,2]
[342289235,1731695449469,-500.0,9.789e-05,2]
[342289236,1731695449478,-500.0,9.789e-05,2]
[342289237,1731695449486,-500.0,9.789e-05,2]
[342289238,1731695449495,-1749.51,9.789e-05,2]
[342289239,1731695449505,-500.0,9.789e-05,2]
[342289240,1731695449515,-1241.8,9.789e-05,2]
[342289241,1731695449525,-570.5,9.789e-05,2]
[342289242,1731695449534,-2059.94,9.789e-05,2]
[342289243,1731695449543,-500.0,9.789e-05,2]
[342289244,1731695449553,-502.25,9.789e-05,2]
[342289245,1731695449562,-500.0,9.789e-05,2]
[342289246,1731695449572,-677.81,9.789e-05,2]
[342289247,1731695449583,-500.0,9.789e-05,2]
[342289248,1731695449592,-500.0,9.789e-05,2]
[342289249,1731695449602,-500.0,9.789e-05,2]
[342289250,1731695449611,-2943.76,9.789e-05,2]
[342289251,1731695449620,-500.0,9.789e-05,2]
[342289252,1731695449632,-1554.01,9.789e-05,2]
[342289253,1731695449642,-500.0,9.789e-05,2]
[342289254,1731695449652,-528.44,9.789e-05,2]
[342289255,1731695449663,-500.0,9.789e-05,2]
[342289256,1731695449673,-1328.62,9.789e-05,2]
[342289257,1731695449683,-500.0,9.789e-05,2]
[342289258,1731695449693,-635.9,9.789e-05,2]
[342289259,1731695449703,-500.0,9.789e-05,2]
[342289260,1731695449713,-1237.41,9.789e-05,2]
[342289261,1731695449722,-792.97,9.789e-05,2]
[342289262,1731695449731,-500.0,9.789e-05,2]
[342289263,1731695449741,-632.37,9.789e-05,2]
[342289264,1731695449750,-1454.11,9.789e-05,2]
[342289265,1731695449759,-500.0,9.789e-05,2]
[342289266,1731695449768,-500.0,9.789e-05,2]
[342289267,1731695449778,-500.0,9.789e-05,2]
[342289268,1731695449787,-1060.21,9.789e-05,2]
[342289269,1731695449800,-533.72,9.789e-05,2]
[342289270,1731695449809,-680.09,9.789e-05,2]
[342289271,1731695449819,-2615.38,9.789e-05,2]
[342289272,1731695449828,-19772.66,9.789e-05,2]
[342289273,1731695449838,-2272.48,9.789e-05,2]
[342289274,1731695449848,-3979.53,9.789e-05,2]
[342289275,1731695449857,-500.0,9.789e-05,2]
[342289276,1731695449867,-1844.95,9.789e-05,2]
[342289277,1731695449879,-500.0,9.789e-05,2]
[342289278,1731695449891,-1642.45,9.789e-05,2]
[342289279,1731695449900,-5780.7,9.789e-05,2]
[342289280,1731695449913,-452.18750235,9.789e-05,2]
[342289281,1731695449929,-1106.88,9.789e-05,2]
[342289282,1731695449939,-1925.68,9.789e-05,2]
[342289283,1731695449949,-500.0,9.789e-05,2]
[342289284,1731695449959,-2337.83,9.789e-05,2]
[342289285,1731695449969,-500.0,9.789e-05,2]
[342289286,1731695449979,-2198.96,9.789e-05,2]
[342289287,1731695449988,-500.0,9.789e-05,2]
[342289288,1731695449998,-841.9,9.789e-05,2]
[342289289,1731695450007,-1751.12,9.789e-05,2]
[342289290,1731695450016,-1641.66,9.789e-05,2]
[342289291,1731695450025,-669.9,9.789e-05,2]
[342289292,1731695450035,-784.23,9.789e-05,2]
[342289293,1731695450044,-745.42,9.789e-05,2]
[342289294,1731695450053,-500.0,9.789e-05,2]
[342289295,1731695450062,-500.0,9.789e-05,2]
[342289296,1731695450072,-2014.16,9.789e-05,2]
[342289297,1731695450082,-816.44,9.789e-05,2]
[342289298,1731695450091,-1921.6,9.789e-05,2]
[342289299,1731695450101,-1277.68,9.789e-05,2]
[342289300,1731695450110,-500.0,9.789e-05,2]
[342289301,1731695450119,-500.0,9.789e-05,2]
[342289302,1731695450132,-500.0,9.789e-05,2]
[342289303,1731695450142,-500.0,9.789e-05,2]
[342289304,1731695450152,-2038.0,9.789e-05,2]
[342289305,1731695450162,-1314.95,9.789e-05,2]
[342289306,1731695450171,-2038.0,9.789e-05,2]
[342289307,1731695450182,-4025.82,9.789e-05,2]
[342289308,1731695450192,-500.0,9.789e-05,2]
[342289309,1731695450202,-500.0,9.789e-05,2]
[342289310,1731695450211,-3908.7,9.789e-05,2]
[342289311,1731695450221,-3908.7,9.789e-05,2]
[342289312,1731695450230,-500.0,9.789e-05,2]
[342289313,1731695450239,-2561.81,9.789e-05,2]
[342289314,1731695450249,-2442.42,9.789e-05,2]
[342289315,1731695450258,-500.0,9.789e-05,2]
[342289316,1731695450268,-879.73,9.789e-05,2]
[342289317,1731695450277,-500.0,9.789e-05,2]
[342289318,1731695450287,-1006.66,9.789e-05,2]
[342289319,1731695450297,-1590.06,9.789e-05,2]
[342289320,1731695450307,-500.0,9.789e-05,2]
[342289321,1731695450317,-500.0,9.789e-05,2]
[342289322,1731695450332,-500.0,9.789e-05,2]
[342289323,1731695450342,-500.0,9.789e-05,2]
[342289324,1731695450351,-852.0,9.789e-05,2]
[342289325,1731695450361,-500.0,9.789e-05,2]
[342289326,1731695450371,-500.0,9.789e-05,2]
[342289327,1731695450384,-1328.12,9.789e-05,2]
[342289328,1731695450394,-1228.13,9.789e-05,2]
[342289329,1731695450405,-500.0,9.789e-05,2]
[342289330,1731695450414,-500.0,9.789e-05,2]
[342289331,1731695450423,-500.0,9.789e-05,2]
[342289332,1731695450434,-500.0,9.789e-05,2]
[342289333,1731695450444,-500.0,9.789e-05,2]
[342289334,1731695450453,-1185.44,9.789e-05,2]
[342289335,1731695450464,-1839.58,9.789e-05,2]
[342289336,1731695450474,-500.0,9.789e-05,2]
[342289337,1731695450483,-195.17,9.789e-05,2]
[342289338,1731695450492,-2249.04,9.789e-05,2]
[342289339,1731695450502,-500.0,9.789e-05,2]
[342289340,1731695450511,-500.0,9.789e-05,2]
[342289341,1731695450521,-500.0,9.789e-05,2]
[342289342,1731695450530,-500.0,9.789e-05,2]
[342289343,1731695450540,-1328.38,9.789e-05,2]
[342289344,1731695450550,-500.0,9.789e-05,2]
[342289345,1731695450559,-1328.38,9.789e-05,2]
[342289346,1731695450568,-500.0,9.789e-05,2]
[342289347,1731695450577,-500.0,9.789e-05,2]
[342289348,1731695450586,-500.0,9.789e-05,2]
[342289349,1731695450595,-981.25,9.789e-05,2]
[342289350,1731695450605,-543.63,9.789e-05,2]
[342289351,1731695450614,-981.25,9.789e-05,2]
[342289352,1731695450623,-981.25,9.789e-05,2]
[342289353,1731695450634,-543.63,9.789e-05,2]
[342289354,1731695450643,-543.63,9.789e-05,2]
[342289355,1731695450652,-500.0,9.789e-05,2]
[342289356,1731695450661,-781.65,9.789e-05,2]
[342289357,1731695450671,-500.0,9.789e-05,2]
[342289358,1731695450680,-645.35,9.789e-05,2]
[342289359,1731695450690,-645.35,9.789e-05,2]
[342289360,1731695450699,-645.35,9.789e-05,2]
[342289361,1731695450708,-500.0,9.789e-05,2]
[342289362,1731695450717,-584.22,9.789e-05,2]
[342289363,1731695450727,-500.0,9.789e-05,2]
[342289364,1731695450736,-500.0,9.789e-05,2]
[342289365,1731695450745,-500.0,9.789e-05,2]
[342289366,1731695450754,-1118.3,9.789e-05,2]
[342289367,1731695450765,-1118.3,9.789e-05,2]
[342289368,1731695450774,-733.26,9.789e-05,2]
[342289369,1731695450783,-733.26,9.789e-05,2]
[342289370,1731695450793,-733.26,9.789e-05,2]
[342289371,1731695450802,-715.24,9.789e-05,2]
[342289372,1731695450812,-550.82,9.789e-05,2]
[342289373,1731695450821,-550.82,9.789e-05,2]
[342289374,1731695450830,-550.82,9.789e-05,2]
[342289375,1731695450840,-500.0,9.789e-05,2]
[342289376,1731695450849,-500.0,9.789e-05,2]
[342289377,1731695450858,-500.0,9.789e-05,2]
[342289378,1731695450867,-500.0,9.79e-05,2]
[342289379,1731695450877,-194.75,9.79e-05,2]
[342289380,1731695450886,-500.0,9.79e-05,2]
[342289381,1731695450895,-500.0,9.79e-05,2]
[342289382,1731695450904,-500.0,9.79e-05,2]
[342289383,1731695450914,-579.74557486,9.79e-05,2]
[342289384,1731695450923,-500.0,9.79e-05,2]
[342289385,1731695450932,-500.0,9.79e-05,2]
[342289386,1731695450941,-500.0,9.79e-05,2]
[342289387,1731695450950,-500.0,9.79e-05,2]
[342289388,1731695450960,-500.0,9.79e-05,2]
[342289389,1731695450970,-500.0,9.79e-05,2]
[342289390,1731695450979,-500.0,9.79e-05,2]
[342289391,1731695450988,-500.0,9.79e-05,2]
[342289392,1731695450998,-500.0,9.79e-05,2]
[342289393,1731695451007,-500.0,9.79e-05,2]
[342289394,1731695451016,-500.0,9.79e-05,2]
[342289395,1731695451026,-500.0,9.79e-05,2]
[342289396,1731695451035,-500.0,9.79e-05,2]
[342289397,1731695451044,-500.0,9.79e-05,2]
[342289398,1731695451053,-500.0,9.79e-05,2]
[342289399,1731695451063,-500.0,9.79e-05,2]
[342289400,1731695451072,-500.0,9.79e-05,2]
[342289401,1731695451082,-500.0,9.79e-05,2]
[342289402,1731695451091,-500.0,9.79e-05,2]
[342289403,1731695451101,-500.0,9.79e-05,2]
[342289404,1731695451111,-500.0,9.79e-05,2]
[342289405,1731695451121,-500.0,9.79e-05,2]
[342289406,1731695451135,-713.92,9.79e-05,2]
[342289407,1731695451144,-500.0,9.79e-05,2]
[342289408,1731695451154,-500.0,9.79e-05,2]
[342289409,1731695451163,-500.0,9.79e-05,2]
[342289410,1731695451173,-250.0,9.79e-05,2]
[342289411,1731695451182,-500.0,9.79e-05,2]
[342289412,1731695451191,-500.0,9.79e-05,2]
[342289413,1731695451201,-500.0,9.79e-05,2]
[342289414,1731695451210,-500.0,9.79e-05,2]
[342289415,1731695451219,-500.0,9.79e-05,2]
[342289416,1731695451229,-500.0,9.79e-05,2]
[342289417,1731695451238,-500.0,9.79e-05,2]
[342289418,1731695451247,-500.0,9.79e-05,2]
[342289419,1731695451257,-151.92,9.79e-05,2]
[342289420,1731695451266,-500.0,9.79e-05,2]
[342289421,1731695451275,-500.0,9.79e-05,2]
[342289422,1731695451285,-500.0,9.79e-05,2]
[342289423,1731695451294,-500.0,9.79e-05,2]
[342289424,1731695451304,-500.0,9.79e-05,2]
[342289425,1731695451313,-500.0,9.79e-05,2]
[342289426,1731695451326,-500.0,9.79e-05,2]
[342289427,1731695451335,-500.0,9.79e-05,2]
[342289428,1731695451345,-500.0,9.79e-05,2]
[342289429,1731695451355,-500.0,9.79e-05,2]
[342289430,1731695451367,-505.47,9.79e-05,2]
[342289431,1731695451380,-500.0,9.79e-05,2]
[342289432,1731695451390,-500.0,9.79e-05,2]
[342289433,1731695451403,-500.0,9.79e-05,2]
[342289434,1731695451412,-500.0,9.79e-05,2]
[342289435,1731695451423,-500.0,9.79e-05,2]
[342289436,1731695451432,-500.0,9.79e-05,2]
[342289437,1731695451443,-500.0,9.79e-05,2]
[342289438,1731695451452,-500.0,9.79e-05,2]
[342289439,1731695451462,-500.0,9.79e-05,2]
[342289440,1731695451472,-500.0,9.79e-05,2]
[342289441,1731695451482,-500.0,9.79e-05,2]
[342289442,1731695451492,-500.0,9.79e-05,2]
[342289443,1731695451503,-602.3,9.79e-05,2]
[342289444,1731695451512,-500.0,9.79e-05,2]
[342289445,1731695451522,-506.79760857,9.79e-05,2]
[342289446,1731695451532,-500.0,9.79e-05,2]
[342289447,1731695451541,-500.0,9.79e-05,2]
[342289448,1731695451551,-505.09,9.79e-05,2]
[342289449,1731695451561,-500.0,9.79e-05,2]
[342289450,1731695451570,-500.0,9.79e-05,2]
[342289451,1731695451580,-500.0,9.79e-05,2]
[342289452,1731695451589,-500.0,9.79e-05,2]
[342289453,1731695451597,-601.2,9.79e-05,2]
[342289454,1731695451606,-500.0,9.79e-05,2]
[342289455,1731695451615,-500.0,9.79e-05,2]
[342289456,1731695451626,-500.0,9.79e-05,2]
[342289457,1731695451637,-512.28,9.79e-05,2]
[342289458,1731695451647,-500.0,9.79e-05,2]
[342289459,1731695451657,-694.97,9.79e-05,2]
[342289460,1731695451667,-500.0,9.79e-05,2]
[342289461,1731695451676,-737.41,9.79e-05,2]
[342289462,1731695451686,-500.0,9.79e-05,2]
[342289463,1731695451696,-500.0,9.79e-05,2]
[342289464,1731695451706,-500.0,9.79e-05,2]
[342289465,1731695451716,-500.0,9.79e-05,2]
[342289466,1731695451726,-500.0,9.79e-05,2]
[342289467,1731695451735,-1855.35,9.79e-05,2]
[342289468,1731695451744,-500.0,9.79e-05,2]
[342289469,1731695451753,-500.0,9.79e-05,2]
[342289470,1731695451763,-550.46,9.79e-05,2]
[342289471,1731695451773,-815.04,9.79e-05,2]
[342289472,1731695451782,-500.0,9.79e-05,2]
[342289473,1731695451792,-1148.69,9.79e-05,2]
[342289474,1731695451801,-500.0,9.79e-05,2]
[342289475,1731695451811,-512.18,9.79e-05,2]
[342289476,1731695451820,-654.54,9.79e-05,2]
[342289477,1731695451830,-500.0,9.79e-05,2]
[342289478,1731695451839,-980.73,9.79e-05,2]
[342289479,1731695451849,-500.0,9.79e-05,2]
[342289480,1731695451858,-500.0,9.79e-05,2]
[342289481,1731695451868,-171.12582855,9.79e-05,2]
[342289482,1731695451881,-224.17129155,9.79e-05,2]
[342289483,1731695451891,-500.0,9.79e-05,2]
[342289484,1731695451901,-877.01,9.79e-05,2]
[342289485,1731695451911,-921.76,9.79e-05,2]
[342289486,1731695451921,-500.0,9.79e-05,2]
[342289487,1731695451931,-500.0,9.79e-05,2]
[342289488,1731695451942,-500.0,9.79e-05,2]
[342289489,1731695451951,-616.91,9.79e-05,2]
[342289490,1731695451960,-500.0,9.79e-05,2]
[342289491,1731695451969,-500.0,9.79e-05,2]
[342289492,1731695451979,-500.0,9.79e-05,2]
[342289493,1731695451988,-557.60427678,9.79e-05,2]
[342289494,1731695451997,-553.97,9.79e-05,2]
[342289495,1731695452007,-500.0,9.79e-05,2]
[342289496,1731695452016,-500.0,9.79e-05,2]
[342289497,1731695452026,-913.88,9.79e-05,2]
[342289498,1731695452035,-500.0,9.79e-05,2]
[342289499,1731695452048,-500.0,9.79e-05,2]
[342289500,1731695452057,-1582.37,9.79e-05,2]
[342289501,1731695452067,-500.0,9.79e-05,2]
[342289502,1731695452076,-790.23,9.79e-05,2]
[342289503,1731695452086,-1088.62,9.79e-05,2]
[342289504,1731695452095,-500.0,9.79e-05,2]
[342289505,1731695452105,-500.0,9.79e-05,2]
[342289506,1731695452115,-500.0,9.79e-05,2]
[342289507,1731695452124,-500.0,9.79e-05,2]
[342289508,1731695452135,-543.13,9.79e-05,2]
[342289509,1731695452145,-500.0,9.79e-05,2]
[342289510,1731695452156,-500.0,9.79e-05,2]
[342289511,1731695452168,-563.81561869,9.79e-05,2]
[342289512,1731695452181,-910.88,9.79e-05,2]
[342289513,1731695452192,-500.0,9.79e-05,2]
[342289514,1731695452202,-500.0,9.79e-05,2]
[342289515,1731695452211,-725.44,9.79e-05,2]
[342289516,1731695452221,-500.0,9.79e-05,2]
[342289517,1731695452231,-500.0,9.79e-05,2]
[342289518,1731695452240,-892.98,9.79e-05,2]
[342289519,1731695452249,-1482.27,9.79e-05,2]
[342289520,1731695452259,-1393.06,9.79e-05,2]
[342289521,1731695452268,-1393.06,9.79e-05,2]
[342289522,1731695452277,-1865.47,9.79e-05,2]
[342289523,1731695452287,-706.01,9.79e-05,2]
[342289524,1731695452296,-500.0,9.79e-05,2]
[342289525,1731695452306,-2015.14,9.79e-05,2]
[342289526,1731695452315,-500.0,9.79e-05,2]
[342289527,1731695452328,-500.0,9.79e-05,2]
[342289528,1731695452338,-500.0,9.79e-05,2]
[342289529,1731695452347,-500.0,9.79e-05,2]
[342289530,1731695452357,-1817.74,9.79e-05,2]
[342289531,1731695452366,-1817.74,9.79e-05,2]
[342289532,1731695452378,-500.0,9.79e-05,2]
[342289533,1731695452387,-500.0,9.79e-05,2]
[342289534,1731695452397,-513.18,9.79e-05,2]
[342289535,1731695452408,-500.0,9.79e-05,2]
[342289536,1731695452417,-328.71,9.79e-05,2]
[342289537,1731695452427,-500.0,9.79e-05,2]
[342289538,1731695452436,-500.0,9.79e-05,2]
[342289539,1731695452445,-500.0,9.79e-05,2]
[342289540,1731695452455,-500.0,9.79e-05,2]
[342289541,1731695452464,-267.71654807,9.79e-05,2]
[342289542,1731695452473,-652.02,9.79e-05,2]
[342289543,1731695452483,-540.94,9.79e-05,2]
[342289544,1731695452492,-540.94,9.79e-05,2]
[342289545,1731695452501,-500.0,9.79e-05,2]
[342289546,1731695452511,-961.12,9.79e-05,2]
[342289547,1731695452520,-1367.34,9.79e-05,2]
[342289548,1731695452530,-500.0,9.79e-05,2]
[342289549,1731695452540,-500.0,9.79e-05,2]
[342289550,1731695452550,-500.0,9.79e-05,2]
[342289551,1731695452559,-518.77,9.79e-05,2]
[342289552,1731695452568,-500.0,9.79e-05,2]
[342289553,1731695452578,-803.17,9.79e-05,2]
[342289554,1731695452588,-1539.21,9.79e-05,2]
[342289555,1731695452597,-860.29,9.79e-05,2]
[342289556,1731695452606,-860.29,9.79e-05,2]
[342289557,1731695452615,-2240.69,9.79e-05,2]
[342289558,1731695452628,-449.22756237,9.79e-05,2]
[342289559,1731695452637,-500.0,9.79e-05,2]
[342289560,1731695452647,-762.6,9.79e-05,2]
[342289561,1731695452656,-608.42,9.79e-05,2]
[342289562,1731695452665,-517.91,9.79e-05,2]
[342289563,1731695452674,-500.0,9.79e-05,2]
[342289564,1731695452683,-956.2,9.79e-05,2]
[342289565,1731695452693,-956.2,9.79e-05,2]
[342289566,1731695452702,-500.0,9.79e-05,2]
[342289567,1731695452712,-500.0,9.79e-05,2]
[342289568,1731695452721,-1030.17,9.79e-05,2]
[342289569,1731695452731,-1795.5,9.79e-05,2]
[342289570,1731695452740,-500.0,9.79e-05,2]
[342289571,1731695452749,-500.0,9.79e-05,2]
[342289572,1731695452759,-525.92,9.79e-05,2]
[342289573,1731695452768,-461.0199448,9.79e-05,2]
[342289574,1731695452777,-500.0,9.79e-05,2]
[342289575,1731695452787,-500.0,9.79e-05,2]
[342289576,1731695452796,-2220.12,9.79e-05,2]
[342289577,1731695452805,-1069.59,9.79e-05,2]
[342289578,1731695452814,-500.0,9.79e-05,2]
[342289579,1731695452826,-625.02,9.79e-05,2]
[342289580,1731695452840,-500.0,9.79e-05,2]
[342289581,1731695452849,-655.55,9.79e-05,2]
[342289582,1731695452859,-655.55,9.79e-05,2]
[342289583,1731695452868,-1119.84,9.79e-05,2]
[342289584,1731695452878,-623.19,9.79e-05,2]
[342289585,1731695452888,-500.0,9.79e-05,2]
[342289586,1731695452898,-500.0,9.79e-05,2]
[342289587,1731695452907,-500.0,9.79e-05,2]
[342289588,1731695452917,-500.0,9.79e-05,2]
[342289589,1731695452931,-631.34145633,9.79e-05,2]
[342289590,1731695452941,-500.0,9.79e-05,2]
[342289591,1731695452951,-1236.13,9.79e-05,2]
[342289592,1731695452961,-2846.72,9.79e-05,2]
[342289593,1731695452971,-500.0,9.79e-05,2]
[342289594,1731695452981,-500.0,9.79e-05,2]
[342289595,1731695452990,-500.0,9.79e-05,2]
[342289596,1731695453000,-500.0,9.79e-05,2]
[342289597,1731695453009,-500.0,9.79e-05,2]
[342289598,1731695453019,-500.0,9.79e-05,2]
[342289599,1731695453028,-500.0,9.79e-05,2]
[342289600,1731695453039,-500.0,9.79e-05,2]
[342289601,1731695453049,-500.0,9.79e-05,2]
[342289602,1731695453058,-500.0,9.79e-05,2]
[342289603,1731695453068,-500.0,9.79e-05,2]
[342289604,1731695453078,-770.09,9.79e-05,2]
[342289605,1731695453087,-501.52,9.79e-05,2]
[342289606,1731695453097,-1068.3,9.79e-05,2]
[342289607,1731695453106,-500.0,9.79e-05,2]
[342289608,1731695453115,-500.0,9.79e-05,2]
[342289609,1731695453124,-639.21,9.79e-05,2]
[342289610,1731695453136,-639.21,9.79e-05,2]
[342289611,1731695453145,-500.0,9.79e-05,2]
[342289612,1731695453155,-500.0,9.79e-05,2]
[342289613,1731695453164,-500.0,9.79e-05,2]
[342289614,1731695453174,-500.0,9.79e-05,2]
[342289615,1731695453183,-500.0,9.79e-05,2]
[342289616,1731695453192,-588.73,9.79e-05,2]
[342289617,1731695453203,-778.5,9.79e-05,2]
[342289618,1731695453212,-669.07,9.79e-05,2]
[342289619,1731695453222,-669.07,9.79e-05,2]
[342289620,1731695453231,-500.0,9.79e-05,2]
[342289621,1731695453241,-500.0,9.79e-05,2]
[342289622,1731695453251,-500.0,9.79e-05,2]
[342289623,1731695453261,-426.31157349,9.79e-05,2]
[342289624,1731695453270,-825.14,9.79e-05,2]
[342289625,1731695453280,-500.0,9.79e-05,2]
[342289626,1731695453290,-568.71,9.79e-05,2]
[342289627,1731695453300,-1138.4,9.79e-05,2]
[342289628,1731695453310,-683.68,9.79e-05,2]
[342289629,1731695453319,-500.0,9.79e-05,2]
[342289630,1731695453332,-500.0,9.79e-05,2]
[342289631,1731695453342,-500.0,9.79e-05,2]
[342289632,1731695453352,-967.73,9.79e-05,2]
[342289633,1731695453361,-500.0,9.79e-05,2]
[342289634,1731695453371,-370.49019482,9.79e-05,2]
[342289635,1731695453620,-500.0,9.79e-05,2]
[342289636,1731695453633,-500.0,9.79e-05,2]
[342289637,1731695453642,-250.84246073,9.79e-05,2]
[342289638,1731695453651,-500.0,9.79e-05,2]
[342289639,1731695453661,-1022.52,9.79e-05,2]
[342289640,1731695453670,-500.0,9.79e-05,2]
[342289641,1731695453680,-500.0,9.79e-05,2]
[342289642,1731695453689,-500.0,9.79e-05,2]
[342289643,1731695453699,-500.0,9.79e-05,2]
[342289644,1731695453708,-500.0,9.79e-05,2]
[342289645,1731695453718,-500.0,9.79e-05,2]
[342289646,1731695453727,-500.0,9.79e-05,2]
[342289647,1731695453737,-500.0,9.79e-05,2]
[342289648,1731695453747,-500.0,9.79e-05,2]
[342289649,1731695453757,-500.0,9.79e-05,2]
[342289650,1731695453766,-814.87,9.79e-05,2]
[342289651,1731695453776,-500.0,9.79e-05,2]
[342289652,1731695453786,-388.38,9.79e-05,2]
[342289653,1731695453795,-500.0,9.79e-05,2]
[342289654,1731695453805,-500.0,9.79e-05,2]
[342289655,1731695453814,-2780.98,9.79e-05,2]
[342289656,1731695453824,-696.73,9.79e-05,2]
[342289657,1731695453834,-521.37,9.79e-05,2]
[342289658,1731695453843,-515.08,9.79e-05,2]
[342289659,1731695453852,-1509.07,9.79e-05,2]
[342289660,1731695453862,-500.0,9.79e-05,2]
[342289661,1731695453872,-538.02,9.79e-05,2]
[342289662,1731695453886,-538.02,9.79e-05,2]
[342289663,1731695453896,-500.0,9.79e-05,2]
[342289664,1731695453906,-2481.75,9.79e-05,2]
[342289665,1731695453917,-500.0,9.79e-05,2]
[342289666,1731695453927,-500.0,9.79e-05,2]
[342289667,1731695453937,-535.04,9.79e-05,2]
[342289668,1731695453948,-741.44,9.79e-05,2]
[342289669,1731695453958,-1148.89,9.79e-05,2]
[342289670,1731695453968,-500.0,9.79e-05,2]
[342289671,1731695453978,-500.0,9.79e-05,2]
[342289672,1731695453987,-500.0,9.79e-05,2]
[342289673,1731695453997,-2866.03,9.79e-05,2]
[342289674,1731695454007,-500.0,9.79e-05,2]
[342289675,1731695454017,-500.0,9.79e-05,2]
[342289676,1731695454027,-592.35,9.79e-05,2]
[342289677,1731695454036,-500.0,9.79e-05,2]
[342289678,1731695454046,-500.0,9.79e-05,2]
[342289679,1731695454054,-500.0,9.79e-05,2]
[342289680,1731695454064,-500.0,9.79e-05,2]
[342289681,1731695454073,-966.35,9.79e-05,2]
[342289682,1731695454083,-500.0,9.79e-05,2]
[342289683,1731695454093,-966.35,9.79e-05,2]
[342289684,1731695454103,-832.82,9.79e-05,2]
[342289685,1731695454114,-500.0,9.79e-05,2]
[342289686,1731695454124,-500.0,9.79e-05,2]
[342289687,1731695454140,-808.13,9.79e-05,2]
[342289688,1731695454154,-500.0,9.79e-05,2]
[342289689,1731695454163,-500.0,9.79e-05,2]
[342289690,1731695454173,-500.0,9.79e-05,2]
[342289691,1731695454182,-516.65,9.79e-05,2]
[342289692,1731695454192,-500.0,9.79e-05,2]
[342289693,1731695454201,-500.0,9.79e-05,2]
[342289694,1731695454211,-500.0,9.79e-05,2]
[342289695,1731695454221,-797.54,9.79e-05,2]
[342289696,1731695454230,-224.83409329,9.79e-05,2]
[342289697,1731695454239,-500.0,9.79e-05,2]
[342289698,1731695454248,-500.0,9.79e-05,2]
[342289699,1731695454258,-529.96,9.79e-05,2]
[342289700,1731695454267,-500.0,9.79e-05,2]
[342289701,1731695454277,-771.9,9.79e-05,2]
[342289702,1731695454286,-1871.36,9.79e-05,2]
[342289703,1731695454296,-583.36,9.79e-05,2]
[342289704,1731695454306,-583.36,9.79e-05,2]
[342289705,1731695454315,-608.27,9.79e-05,2]
[342289706,1731695454330,-500.0,9.79e-05,2]
[342289707,1731695454340,-500.0,9.79e-05,2]
[342289708,1731695454350,-198.56681784,9.79e-05,2]
[342289709,1731695454360,-500.0,9.79e-05,2]
[342289710,1731695454371,-659.08,9.79e-05,2]
[342289711,1731695454383,-647.11,9.79e-05,2]
[342289712,1731695454392,-500.0,9.79e-05,2]
[342289713,1731695454405,-500.0,9.79e-05,2]
[342289714,1731695454415,-500.0,9.79e-05,2]
[342289715,1731695454424,-1749.51,9.79e-05,2]
[342289716,1731695454434,-500.0,9.79e-05,2]
[342289717,1731695454444,-500.0,9.79e-05,2]
[342289718,1731695454453,-500.0,9.79e-05,2]
[342289719,1731695454463,-500.0,9.79e-05,2]
[342289720,1731695454472,-500.0,9.79e-05,2]